fUSD/lending_fUSD_20250612
["ID","MTS","AMOUNT","RATE_DAILY","PERIOD"]
[365526857,1749754231872,-217.64215717,0.00016201,2]
[365526858,1749754231882,-161.05,0.00016208,2]
[365526859,1749754231891,-1021.84,0.00016328,2]
[365526860,1749754231900,-202.0,0.00016625,3]
[365526861,1749754231913,-867.9924602,0.00016848,2]
[365526862,1749754231923,-2000.0,0.00016864,2]
[365526863,1749754231932,-300.0,0.00016889,2]
[365526864,1749754231942,-1200.0,0.00016889,2]
[365526865,1749754231951,-585.49623816,0.0001689,2]
[365526866,1749754231963,-684.71908266,0.0001689,2]
[365526867,1749754231974,-580.71938129,0.0001689,2]
[365526868,1749754231988,-106.92129789,0.0001689,2]
[365526869,1749754231997,-207.4,0.0001689,2]
[365526870,1749754232006,-133.01943505,0.00016898,2]
[365526871,1749754232018,-166.98056495,0.00016898,2]
[365526872,1749754232026,-100.61374236,0.00016899,2]
[365526873,1749754232050,-449.38625764,0.00016899,2]
[365526874,1749754232060,-1319.2224,0.000169,2]
[365526875,1749754232070,-1091.7216,0.000169,2]
[365526876,1749754232079,-1000.0,0.000169,2]
[365526877,1749754232089,-1430.2148,0.000169,2]
[365526878,1749754232098,-910.85,0.000169,2]
[365526879,1749754232108,-1642.51,0.000169,2]
[365526880,1749754232118,-461.37,0.000169,2]
[365526881,1749754232127,-991.04,0.000169,2]
[365526882,1749754232137,-461.37,0.000169,2]
[365526883,1749754232147,-2135.91406501,0.000169,2]
[365526884,1749754232156,-461.37,0.000169,2]
[365526885,1749754232168,-196.38629123,0.000169,2]
[365526886,1749754232178,-328.0,0.0001694,2]
[365526887,1749754232187,-1050.54487152,0.00016945,2]
[365526888,1749754232198,-1927.0,0.0001695,2]
[365526889,1749754232207,-500.0,0.00016973,2]
[365526890,1749754232217,-510.23832637,0.00016973,2]
[365526891,1749754232227,-500.0,0.00016973,2]
[365526892,1749754232237,-500.0,0.00016973,2]
[365526894,1749754232247,-500.0,0.00016973,2]
[365526895,1749754232257,-181.38307142,0.00016989,2]
[365526896,1749754232267,-151.0,0.0001699,2]
[365526897,1749754232276,-1002.30771141,0.00016998,2]
[365526898,1749754232286,-825.275,0.00016998,2]
[365526899,1749754232295,-500.0,0.00016999,2]
[365526900,1749754232304,-473.78840539,0.00016999,2]
[365526901,1749754232316,-26.21159461,0.00016999,2]
[365526902,1749754232326,-500.0,0.00016999,2]
[365526903,1749754232335,-500.0,0.00016999,2]
[365526904,1749754232345,-500.0,0.00016999,2]
[365526906,1749754232353,-338.85890364,0.00016999,2]
[365526912,1749754232401,-100.33171604,0.00016999,2]
[365526914,1749754232414,-60.80938032,0.00016999,2]
[365526916,1749754232423,-500.0,0.00016999,2]
[365526918,1749754232432,-500.0,0.00016999,2]
[365526920,1749754232441,-500.0,0.00016999,2]
[365526922,1749754232451,-272.97564926,0.00016999,2]
[365526924,1749754232461,-500.0,0.00016999,2]
[365526926,1749754232470,-500.0,0.00016999,2]
[365526928,1749754232479,-500.0,0.00016999,2]
[365526930,1749754232488,-500.0,0.00016999,2]
[365526932,1749754232497,-500.0,0.00016999,2]
[365526933,1749754232507,-500.0,0.00016999,2]
[365526935,1749754232516,-500.0,0.00016999,2]
[365526937,1749754232525,-158.90046269,0.00016999,2]
[365526939,1749754232537,-341.09953731,0.00016999,2]
[365526941,1749754232547,-500.0,0.00016999,2]
[365526943,1749754232555,-77.43589958,0.00016999,2]
[365526946,1749754232567,-422.56410042,0.00016999,2]
[365526948,1749754232576,-500.0,0.00016999,2]
[365526950,1749754232586,-500.0,0.00016999,2]
[365526952,1749754232595,-166.969266,0.00016999,2]
[365526954,1749754232607,-133.030734,0.00016999,2]
[365526956,1749754232617,-500.0,0.00016999,2]
[365526958,1749754232626,-672.5737572,0.00016999,2]
[365526960,1749754232636,-312.16595237,0.00016999,2]
[365526962,1749754232646,-1154.68789898,0.00016999,5]
[365526964,1749754232655,-191.76,0.00016999,2]
[365526966,1749754232666,-300.0,0.00016999,2]
[365526968,1749754232675,-128.58165745,0.00016999,2]
[365526970,1749754232686,-171.41834255,0.00016999,2]
[365526972,1749754232696,-243.90191839,0.00016999,2]
[365527005,1749754232997,-256.09808161,0.00016999,2]
[365527007,1749754233012,-240.39791839,0.00016999,2]
[365527009,1749754233025,-259.60208161,0.00016999,2]
[365527011,1749754233037,-500.0,0.00016999,2]
[365527013,1749754233047,-500.0,0.00016999,2]
[365527015,1749754233056,-21.26604946,0.00016999,2]
[365527018,1749754233069,-128.73395054,0.00016999,2]
[365527020,1749754233079,-150.0,0.00016999,2]
[365527022,1749754233089,-150.0,0.00016999,2]
[365527024,1749754233099,-207.85033594,0.00016999,2]
[365527026,1749754233109,-150.0,0.00016999,2]
[365527028,1749754233118,-150.0,0.00016999,2]
[365527030,1749754233128,-150.0,0.00016999,2]
[365527032,1749754233138,-150.0,0.00016999,2]
[365527034,1749754233147,-150.0,0.00016999,2]
[365527036,1749754233157,-500.0,0.00016999,2]
[365527038,1749754233168,-150.0,0.00016999,2]
[365527040,1749754233177,-500.0,0.00016999,2]
[365527042,1749754233187,-300.0,0.00016999,2]
[365527044,1749754233197,-300.0,0.00016999,2]
[365527045,1749754233207,-150.0,0.00016999,2]
[365527047,1749754233217,-1.85503024,0.00016999,2]
[365527048,1749754233237,-298.14496976,0.00016999,2]
[365527049,1749754233246,-500.0,0.00016999,2]
[365527050,1749754233256,-500.0,0.00016999,2]
[365527051,1749754233265,-1833.34892441,0.00016999,2]
[365527052,1749754233277,-577.65107559,0.00016999,2]
[365527053,1749754233287,-572.0,0.00017,2]
[365527054,1749754233297,-259.99342664,0.00017,3]
[365527055,1749754233310,-573.43709182,0.00017,3]
[365527056,1749754233320,-458.97356071,0.00017,2]
[365527057,1749754233332,-271.414428,0.00017,2]
[365527058,1749754233343,-295.80682,0.00017,2]
[365527059,1749754233355,-13228.75482803,0.00017,2]
[365527060,1749754233367,-4749.77558806,0.00017,2]
[365527061,1749754233378,-321.29154664,0.00017,2]
[365527065,1749754237910,-2217.9339604,0.000169,2]
[365527066,1749754237920,-235.43239541,0.00016997,2]
[365527067,1749754237930,-500.0,0.00016997,2]
[365527068,1749754237940,-500.0,0.00016997,2]
[365527069,1749754237949,-158.56807054,0.00016997,2]
[365527070,1749754237959,-500.0,0.00016997,2]
[365527071,1749754237968,-500.0,0.00016997,2]
[365527072,1749754237978,-500.0,0.00016997,2]
[365527073,1749754237992,-251.17701298,0.00016997,2]
[365527074,1749754238003,-500.0,0.00016997,2]
[365527075,1749754238013,-500.0,0.00016997,2]
[365527076,1749754238023,-506.63901674,0.00016997,2]
[365527077,1749754238032,-497.28495389,0.00016997,2]
[365527078,1749754238042,-500.0,0.00016997,2]
[365527079,1749754238051,-500.0,0.00016997,2]
[365527080,1749754238061,-500.0,0.00016997,2]
[365527081,1749754238072,-500.0,0.00016997,2]
[365527082,1749754238081,-500.0,0.00016997,2]
[365527083,1749754238090,-500.0,0.00016997,2]
[365527084,1749754238100,-500.0,0.00016997,2]
[365527085,1749754238110,-150.0,0.00016999,2]
[365527086,1749754238119,-4701.93934669,0.00017,3]
[365527087,1749754238140,-18214.4731126,0.00017,3]
[365527088,1749754238152,-2177.4,0.00017,3]
[365527089,1749754238165,-2348.13958196,0.00017,3]
[365527090,1749754238177,-611.70497818,0.00017,3]
[365527094,1749754240271,-41522.07774067,0.00017,3]
[365527095,1749754240283,-272.51578789,0.00017,3]
[365527096,1749754240294,-107475.00000001,0.00017,3]
[365527097,1749754240323,-200371.32011415,0.00017,3]
[365527098,1749754240332,-4407.96095575,0.00017,3]
[365527099,1749754240341,-786478.2457513,0.00017,2]
[365527110,1749754243166,-500.0,0.00016999,2]
[365527111,1749754243176,-329.25077357,0.00017,2]
[365527112,1749754243219,-379.20587161,0.00017,2]
[365527113,1749754243231,-1608.92026847,0.00017,2]
[365527121,1749754271408,201.0,0.00015103,2]
[365527122,1749754350710,150.0,0.0002375,120]
[365527123,1749754432562,156.0880602,0.00019918,30]
[365527124,1749754590502,150.0,0.00023234,120]
[365527125,1749754616327,421.33550066,0.00024657,120]
[365527126,1749754790667,-240.01328886,0.00020027,30]
[365527127,1749754790695,-153.64,0.000201,31]
[365527128,1749754790719,-153.64,0.000201,31]
[365527129,1749754790743,-153.64,0.000201,31]
[365527130,1749754790766,-153.64,0.000201,31]
[365527131,1749754790788,-153.64,0.000201,31]
[365527132,1749754790810,-153.64,0.000201,31]
[365527133,1749754790831,-153.64,0.000201,31]
[365527134,1749754790851,-153.64,0.000201,31]
[365527135,1749754790872,-240.01328886,0.0002011,30]
[365527136,1749754790893,-240.01328886,0.00020192,30]
[365527137,1749754790913,-240.01328886,0.00020247,30]
[365527138,1749754790933,-240.01328886,0.00020329,30]
[365527139,1749754790953,-322783.8135557,0.000209,30]
[365527140,1749754811836,202.0,0.00015386,2]
[365527141,1749754848573,-1596.15549358,0.000209,30]
[365527142,1749754848596,-833.43051846,0.000209,30]
[365527143,1749754870827,500.0,0.00015916,2]
[365527144,1749754912292,165.087348,0.00015958,2]
[365527145,1749754962943,-152.0,0.00017686,7]
[365527146,1749754962994,-152.0,0.0001834,8]
[365527147,1749754963031,-152.0,0.00018993,9]
[365527148,1749754963092,-202.0,0.00019369,7]
[365527149,1749754963114,-1191.65540167,0.000195,7]
[365527150,1749754963144,-152.0,0.00019646,10]
[365527151,1749754963166,-1012.746814,0.00019789,7]
[365527152,1749754963213,-176.59330803,0.0002,7]
[365527153,1749754963242,-200.0,0.0002,7]
[365527154,1749754963265,-1000.27064107,0.0002,14]
[365527155,1749754963287,-541.44307115,0.0002,10]
[365527156,1749754963310,-311.0,0.0002,7]
[365527157,1749754963333,-766.72418877,0.0002,7]
[365527158,1749754963355,-481.31097583,0.0002,10]
[365527159,1749754963398,-202.0,0.00020166,8]
[365527160,1749754963422,-152.0,0.00020299,11]
[365527161,1749754963446,-152.0,0.00020952,12]
[365527162,1749754963468,-202.0,0.00020963,9]
[365527163,1749754963490,-200.0,0.00021,7]
[365527164,1749754963512,-400.0,0.0002151,7]
[365527165,1749754963534,-152.0,0.00021605,13]
[365527166,1749754963557,-202.0,0.00021759,10]
[365527167,1749754963579,-200.0,0.00021918,7]
[365527168,1749754963601,-769.77996685,0.00022,7]
[365527169,1749754963622,-8181.56620458,0.00022,15]
[365527170,1749754963644,-1876.0286933,0.00022,12]
[365527171,1749754963666,-200.0,0.000221,7]
[365527172,1749754963689,-152.0,0.00022259,14]
[365527173,1749754963718,-280466.88073475,0.000223,7]
[365527174,1749755172117,202.0,0.00015182,2]
[365527175,1749755258369,200.0,0.00015914,7]
[365527176,1749755287567,0.41398796,0.000201,31]
[365527185,1749755432375,-500.0,0.00016039,2]
[365527186,1749755432389,-20.43658697,0.00016039,2]
[365527187,1749755432401,-214.09280477,0.00016039,2]
[365527188,1749755432411,-200.0,0.00016058,2]
[365527189,1749755432424,-202.0,0.00016061,3]
[365527190,1749755432434,-283.0,0.000162,2]
[365527191,1749755432444,-178.72,0.00016201,2]
[365527192,1749755432454,-250.0,0.00016201,2]
[365527193,1749755432466,-240.86,0.00016201,2]
[365527194,1749755432477,-200.0,0.00016201,2]
[365527195,1749755432488,-1046.61,0.00016201,2]
[365527196,1749755432498,-166.52,0.00016687,2]
[365527197,1749755432511,-980.94485654,0.00016778,2]
[365527198,1749755432521,-1957.856,0.0001679,2]
[365527199,1749755432531,-207.4,0.0001679,2]
[365527200,1749755432541,-1557.4783,0.000168,2]
[365527201,1749755432551,-461.37,0.000168,2]
[365527202,1749755432560,-643.96097669,0.000168,2]
[365527203,1749755432570,-354.6,0.000168,2]
[365527204,1749755432580,-726.0,0.00016801,2]
[365527205,1749755432590,-168.0,0.00016803,2]
[365527206,1749755432599,-1149.0,0.0001681,2]
[365527207,1749755432610,-643.96097664,0.00016811,2]
[365527208,1749755432625,-643.96097664,0.00016822,2]
[365527209,1749755432635,-643.96097664,0.00016833,2]
[365527210,1749755432645,-637.0,0.00016839,2]
[365527211,1749755432654,-817.0,0.00016839,2]
[365527212,1749755432664,-643.96097664,0.00016844,2]
[365527213,1749755432675,-2030.296672,0.00016845,2]
[365527214,1749755432684,-643.96097664,0.00016856,2]
[365527215,1749755432694,-200.0,0.00016863,2]
[365527216,1749755432704,-2000.0,0.00016864,2]
[365527217,1749755432715,-643.96097664,0.00016867,2]
[365527218,1749755432726,-409.22975796,0.00016871,2]
[365527219,1749755432738,-494.0,0.00016873,2]
[365527220,1749755432748,-643.96097664,0.00016878,2]
[365527221,1749755432758,-643.96097664,0.00016889,2]
[365527222,1749755432768,-151.0,0.0001689,2]
[365527223,1749755432778,-225.74999279,0.0001689,2]
[365527224,1749755432787,-151.0,0.0001689,2]
[365527225,1749755432798,-500.0,0.0001689,2]
[365527226,1749755432807,-1500.0,0.0001689,2]
[365527227,1749755432817,-500.0,0.0001689,2]
[365527228,1749755432827,-500.0,0.0001689,2]
[365527229,1749755432838,-250.0,0.0001689,2]
[365527230,1749755432849,-500.0,0.0001689,2]
[365527231,1749755432859,-500.0,0.0001689,2]
[365527232,1749755432869,-151.0,0.0001689,2]
[365527233,1749755432878,-512.28236882,0.0001689,2]
[365527234,1749755432888,-500.0,0.0001689,2]
[365527235,1749755432898,-152.07473124,0.0001689,2]
[365527236,1749755432907,-500.0,0.0001689,2]
[365527237,1749755432917,-500.0,0.0001689,2]
[365527238,1749755432927,-500.0,0.0001689,2]
[365527239,1749755432936,-500.0,0.0001689,2]
[365527240,1749755432947,-500.0,0.0001689,2]
[365527241,1749755432958,-500.0,0.0001689,2]
[365527242,1749755432967,-500.0,0.0001689,2]
[365527243,1749755432977,-390.8786363,0.0001689,2]
[365527244,1749755432987,-590.0,0.00016892,2]
[365527245,1749755432996,-2006.262,0.00016892,2]
[365527246,1749755433007,-1276.0,0.00016892,2]
[365527247,1749755433016,-558.0,0.00016892,2]
[365527248,1749755433026,-1016.0,0.00016893,2]
[365527249,1749755433036,-929.106,0.00016896,2]
[365527250,1749755433046,-900.26894901,0.00016896,2]
[365527251,1749755433059,-772.73105099,0.00016896,2]
[365527252,1749755433069,-532.26894901,0.00016896,2]
[365527253,1749755433955,-627.73105099,0.00016896,2]
[365527254,1749755433965,-4087.0,0.00016896,2]
[365527255,1749755433975,-853.0,0.00016896,2]
[365527256,1749755433984,-155.0,0.00016896,2]
[365527257,1749755433994,-2105.41764886,0.000169,2]
[365527258,1749755434003,-14089.27135379,0.000169,2]
[365527259,1749755434014,-1565.67122521,0.000169,2]
[365527260,1749755434026,-37419.3755117,0.000169,2]
[365527261,1749755434045,-1915.6396093,0.000169,2]
[365527262,1749755434055,-461.37,0.000169,2]
[365527263,1749755434064,-461.37,0.000169,2]
[365527264,1749755434074,-461.37,0.000169,2]
[365527265,1749755434084,-461.37,0.000169,2]
[365527266,1749755434094,-461.37,0.000169,2]
[365527267,1749755434105,-34.66964549,0.000169,2]
[365527268,1749755434131,-609.29133115,0.000169,2]
[365527269,1749755434141,-2661.73227785,0.000169,2]
[365527270,1749755434152,-1401.0,0.000169,2]
[365527271,1749755434176,-353.32503845,0.000169,2]
[365527272,1749755434188,-1212.66829203,0.000169,2]
[365527273,1749755434197,-579.72232797,0.000169,2]
[365527277,1749755437945,-392.66258,0.00016871,2]
[365527278,1749755437956,-172.78162791,0.00016892,2]
[365527279,1749755437965,-258.9997619,0.00016892,2]
[365527280,1749755437975,-500.0,0.00016892,2]
[365527281,1749755437984,-374.93328276,0.00016892,2]
[365527282,1749755437995,-142.13172045,0.00016892,2]
[365527283,1749755438004,-500.0,0.00016892,2]
[365527284,1749755438013,-3301.34708301,0.00016896,2]
[365527285,1749755438027,-298.34808751,0.00016896,2]
[365527286,1749755438046,-3466.30482948,0.00016896,2]
[365527287,1749755438057,-65.21284868,0.000169,2]
[365527288,1749755438067,-224.49259574,0.000169,2]
[365527289,1749755438077,-265.8892836,0.000169,2]
[365527290,1749755438086,-1478.62264028,0.000169,2]
[365527291,1749755438095,-1071.56246898,0.000169,2]
[365527292,1749755438104,-4089.1501,0.000169,2]
[365527293,1749755438114,-88888.0,0.000169,2]
[365527294,1749755438123,-754.01481041,0.00016902,2]
[365527295,1749755438133,-492.86265164,0.00016902,2]
[365527296,1749755438143,-492.86265164,0.00016913,2]
[365527297,1749755438152,-200.0,0.00016925,2]
[365527298,1749755438161,-960.42426502,0.00016929,2]
[365527299,1749755438171,-168.0,0.0001694,2]
[365527300,1749755438180,-202.0,0.0001694,4]
[365527301,1749755438190,-960.42426502,0.00016943,2]
[365527302,1749755438200,-1310.0,0.00016951,2]
[365527303,1749755438210,-409.22975796,0.00016952,2]
[365527304,1749755438220,-2183.31810187,0.00016955,2]
[365527305,1749755438229,-492.86265164,0.00016963,2]
[365527306,1749755438239,-409.22975796,0.00016968,2]
[365527307,1749755438249,-500.0,0.00016973,2]
[365527308,1749755438259,-500.0,0.00016973,2]
[365527309,1749755438268,-500.0,0.00016973,2]
[365527310,1749755438278,-500.0,0.00016973,2]
[365527311,1749755438288,-183.1472126,0.00016973,2]
[365527312,1749755438297,-500.0,0.00016973,2]
[365527313,1749755438307,-867.9924602,0.00016974,2]
[365527314,1749755438316,-960.42426502,0.00016977,2]
[365527315,1749755438326,-500.0,0.00016977,2]
[365527316,1749755438335,-245.49584106,0.00016977,2]
[365527317,1749755438345,-462.62255729,0.00016977,2]
[365527318,1749755438354,-365.41532564,0.00016977,2]
[365527319,1749755438364,-519.35011344,0.00016977,2]
[365527320,1749755438373,-500.0,0.00016977,2]
[365527321,1749755438383,-287.90733893,0.00016977,2]
[365527322,1749755438397,-500.0,0.00016977,2]
[365527323,1749755438407,-500.0,0.00016977,2]
[365527324,1749755438417,-500.0,0.00016977,2]
[365527325,1749755438428,-500.0,0.00016977,2]
[365527326,1749755438437,-67350.9802113,0.00016978,2]
[365527327,1749755438447,-166.32792696,0.0001699,2]
[365527328,1749755438456,-300.0,0.00016999,2]
[365527329,1749755438467,-198.69561,0.00016999,2]
[365527330,1749755438476,-300.0,0.00016999,2]
[365527331,1749755438485,-1256.03,0.00016999,2]
[365527332,1749755438495,-197.57777096,0.00016999,2]
[365527333,1749755438504,-183.77,0.00016999,2]
[365527334,1749755438513,-500.0,0.00016999,2]
[365527335,1749755438522,-150.0,0.00016999,2]
[365527336,1749755438531,-150.0,0.00016999,2]
[365527337,1749755438540,-500.0,0.00016999,2]
[365527338,1749755438549,-500.0,0.00016999,2]
[365527339,1749755438560,-500.0,0.00016999,2]
[365527340,1749755438570,-500.0,0.00016999,2]
[365527341,1749755438579,-150.0,0.00016999,2]
[365527342,1749755438590,-150.0,0.00016999,2]
[365527343,1749755438599,-500.0,0.00016999,2]
[365527344,1749755438609,-2311.0,0.00016999,2]
[365527345,1749755438618,-150.0,0.00016999,2]
[365527346,1749755438627,-500.0,0.00016999,2]
[365527347,1749755438638,-520.0,0.00017,2]
[365527348,1749755438647,-833.43051846,0.00017,3]
[365527349,1749755438656,-4407.96095575,0.00017,3]
[365527350,1749755438666,-236070.33976521,0.00017,3]
[365527351,1749755438679,-1091.31940927,0.00017,3]
[365527352,1749755440142,-756.0037459,0.00016896,2]
[365527353,1749755440197,-127.9962541,0.00016896,2]
[365527354,1749755440207,-54178.63914394,0.00017,3]
[365527355,1749755440218,-1451880.15852906,0.00017,2]
[365527356,1749755440355,-2770.34690872,0.00017,2]
[365527357,1749755440470,-53241.50677025,0.00017,2]
[365527358,1749755440483,-67001.26805328,0.00017,2]
[365527359,1749755440495,-39410.25421623,0.00017,2]
[365527506,1749755446094,-500.0,0.00016977,2]
[365527507,1749755446103,-500.0,0.00016977,2]
[365527508,1749755446113,-500.0,0.00016977,2]
[365527509,1749755446122,-500.0,0.00016977,2]
[365527510,1749755446132,-197.80564768,0.00016977,2]
[365527511,1749755446141,-317.21615244,0.00016977,2]
[365527513,1749755456956,478.38,0.00013699,2]
[365527514,1749755891685,202.0,0.00015819,2]
[365527515,1749755916697,945.49,0.00014402,2]
[365527516,1749756232557,150.0,0.0002465,120]
[365527517,1749756251748,202.0,0.00015739,2]
[365527518,1749756335571,150.0,0.00017,10]
[365527519,1749756341426,204.0,0.00015739,2]
[365527527,1749756612110,202.0,0.00015681,2]
[365527532,1749756632142,-1000.0,0.00016098,2]
[365527533,1749756632152,-533.27913237,0.00016184,2]
[365527534,1749756632162,-666.0,0.00016201,2]
[365527535,1749756632171,-200.0,0.00016201,7]
[365527536,1749756632180,-161.54904643,0.00016201,2]
[365527537,1749756632189,-152.0,0.00016511,3]
[365527538,1749756632199,-166.34,0.00016521,2]
[365527539,1749756632208,-202.0,0.00016645,3]
[365527540,1749756632217,-945.49,0.00016666,2]
[365527541,1749756632226,-743.50715394,0.00016855,2]
[365527542,1749756632235,-2974.02861573,0.00016862,2]
[365527543,1749756632244,-2000.0,0.00016864,2]
[365527544,1749756632254,-273.895308,0.00016866,2]
[365527545,1749756632263,-697.71276566,0.00016871,2]
[365527546,1749756632272,-2612.75197641,0.00016873,2]
[365527547,1749756632295,-251.55564696,0.00016873,2]
[365527548,1749756632304,-349.65867184,0.00016878,2]
[365527549,1749756632314,-273.895308,0.00016881,2]
[365527550,1749756632322,-273.895308,0.00016883,2]
[365527551,1749756632332,-1333.0,0.00016885,2]
[365527552,1749756632341,-2455.37854776,0.00016888,2]
[365527553,1749756632350,-1200.0,0.00016888,2]
[365527554,1749756632359,-200.0,0.00016889,2]
[365527555,1749756632368,-1957.856,0.0001689,2]
[365527556,1749756632377,-207.4,0.0001689,2]
[365527557,1749756632386,-2217.88193239,0.00016893,2]
[365527558,1749756632397,-200.0,0.00016893,2]
[365527559,1749756632406,-2597.34329686,0.00016898,2]
[365527560,1749756632416,-3853.8261,0.000169,2]
[365527561,1749756632425,-2500.0,0.000169,2]
[365527562,1749756632434,-91.33274387,0.000169,2]
[365527563,1749756632465,-619.22107888,0.000169,2]
[365527566,1749756632491,-2316.30819884,0.000169,2]
[365527567,1749756632502,-3603.29758592,0.000169,2]
[365527568,1749756632536,-1315.8,0.000169,2]
[365527697,1749756638148,-342.2659995,0.00016868,2]
[365527698,1749756638254,-2988.7340005,0.00016868,2]
[365527699,1749756638263,-709.68259249,0.000169,2]
[365527700,1749756638273,-155.31316184,0.000169,2]
[365527701,1749756638283,-177.2595224,0.000169,2]
[365527702,1749756638292,-437.52144221,0.000169,2]
[365527703,1749756638302,-987.65733639,0.000169,2]
[365527704,1749756638312,-2864.30762337,0.00016904,2]
[365527705,1749756638321,-2597.34329686,0.00016905,2]
[365527706,1749756638330,-867.9924602,0.0001691,2]
[365527707,1749756638340,-550.0,0.00016911,2]
[365527708,1749756638349,-797.09,0.00016912,2]
[365527709,1749756638358,-461.37,0.00016912,2]
[365527710,1749756638367,-797.09,0.00016912,2]
[365527711,1749756638376,-922.74,0.00016912,2]
[365527712,1749756638385,-797.09,0.00016912,2]
[365527713,1749756638397,-154.32,0.00016912,2]
[365527714,1749756638406,-461.37,0.00016912,2]
[365527715,1749756638415,-628.77,0.00016912,2]
[365527716,1749756638425,-618.56,0.00016912,2]
[365527717,1749756638434,-246.43132582,0.00016913,2]
[365527718,1749756638443,-2217.88193239,0.00016918,2]
[365527719,1749756638452,-2455.37854776,0.00016921,2]
[365527720,1749756638461,-2597.34329686,0.00016923,2]
[365527721,1749756638471,-2864.30762338,0.00016923,2]
[365527722,1749756638480,-2217.88193239,0.00016925,2]
[365527723,1749756638490,-2974.02861573,0.00016926,2]
[365527724,1749756638500,-743.50715394,0.00016932,2]
[365527725,1749756638510,-697.71276566,0.00016932,2]
[365527726,1749756638519,-2864.30762338,0.00016932,2]
[365527727,1749756638528,-246.43132582,0.00016933,2]
[365527728,1749756638538,-2864.30762338,0.00016942,2]
[365527729,1749756638547,-2030.296672,0.00016945,2]
[365527730,1749756638556,-2974.02861573,0.00016949,2]
[365527731,1749756638565,-246.43132582,0.00016963,2]
[365527732,1749756638575,-2455.37854776,0.00016963,2]
[365527733,1749756638584,-605.0,0.00016969,2]
[365527734,1749756638593,-168.56277813,0.00016972,2]
[365527735,1749756638603,-613.6095316,0.00016972,2]
[365527736,1749756638613,-500.0,0.00016973,2]
[365527737,1749756638622,-500.0,0.00016973,2]
[365527738,1749756638632,-438.85510141,0.00016973,2]
[365527739,1749756638642,-161.06394711,0.00016973,2]
[365527740,1749756638652,-500.0,0.00016973,2]
[365527741,1749756638662,-500.0,0.00016973,2]
[365527742,1749756638671,-500.0,0.00016973,2]
[365527743,1749756638680,-632.4397874,0.00016973,2]
[365527744,1749756638689,-500.0,0.00016973,2]
[365527745,1749756638699,-500.0,0.00016973,2]
[365527746,1749756638709,-501.38421696,0.00016973,2]
[365527747,1749756638718,-500.0,0.00016973,2]
[365527748,1749756638727,-502.92160923,0.00016973,2]
[365527749,1749756638736,-501.97534187,0.00016973,2]
[365527750,1749756638745,-512.9654609,0.00016973,2]
[365527751,1749756638755,-500.0,0.00016973,2]
[365527752,1749756638765,-500.0,0.00016973,2]
[365527753,1749756638774,-519.95792131,0.00016973,2]
[365527754,1749756638784,-743.50715394,0.00016974,2]
[365527755,1749756638795,-160.38910945,0.00016984,2]
[365527756,1749756638837,-537.32365621,0.00016984,2]
[365527757,1749756638846,-2864.30762337,0.00016989,2]
[365527758,1749756638855,-1773.57,0.0001699,2]
[365527759,1749756638865,-1773.57,0.0001699,2]
[365527760,1749756638876,-1773.57,0.0001699,2]
[365527761,1749756638886,-151.0,0.0001699,2]
[365527762,1749756638897,-151.0,0.0001699,2]
[365527763,1749756638906,-151.0,0.0001699,2]
[365527764,1749756638915,-153.22322197,0.0001699,2]
[365527765,1749756638924,-151.0,0.0001699,2]
[365527766,1749756638933,-151.0,0.0001699,2]
[365527767,1749756638942,-500.0,0.0001699,2]
[365527768,1749756638951,-151.0,0.0001699,2]